[Event "European Corporate Championship 2022"]
[Site "Rotterdam"]
[Date "2022.06.19"]
[Round "5.1"]
[White "Nijboer, Friso"]
[Black "Van Wely, Loek"]
[Result "1/2-1/2"]
[ECO "B81"]
[WhiteElo "2464"]
[BlackElo "2618"]
[Annotator "TA"]
[PlyCount "108"]
[EventDate "2022.06.18"]
[EventType "team-tourn"]
[EventCountry "NED"]
[SourceTitle "playchess.com"]
[Source "ChessBase"]
[SourceQuality "1"]
[TimeControl "900+5"]

{[%evp 14,108,27,25,39,0,0,0,0,0,0,0,2,0,0,0,28,31,56,24,33,25,31,30,14,15,56,47,70,95,111,115,117,98,400,390,431,422,489,313,292,283,395,395,374,366,341,155,153,126,128,0,25,17,161,133,191,161,295,287,535,541,488,505,686,0,0,0,0,0,0,0,0,0,0,0,0,0,0,-22,0,0,0,0,0,0,8,8,8,0,8,-146,-146,-288,-189,-189,-173]} 1. e4 {[%emt 0:00:02]} c5 {[%emt 0:00:01]} 2. Nf3 {[%emt 0:00:01]} d6 {[%emt 0:00:01]} 3. d4 {[%emt 0:00:06]} cxd4 {[%emt 0:00:02]} 4. Nxd4 {[%emt 0:00:01]} Nf6 {[%emt 0:00:02]} 5. Nc3 {[%emt 0:00:00]} a6 {[%emt 0:00:01]} 6. h3 {[%emt 0:00:05]} e6 {[%emt 0:00:14]} 7. g4 {[%emt 0:00:11]} Be7 {[%emt 0:00:04]} 8. Bg2 {[%emt 0:00:25]} Nc6 {[%emt 0:00:54] B81: Sicilian Scheveningen: Keres Attack.} 9. Nxc6 {[%emt 0:02:13]} bxc6 {[%emt 0:00:02]} 10. e5 {[%emt 0:00:01]} Nd5 {[%emt 0:01:53] The position is equal.} 11. exd6 {[%emt 0:00:03]} Qxd6 {[%emt 0:00:52]} 12. O-O {[%emt 0:05:44]} Qc7 {[%emt 0:02:09] [#]} 13. Qf3 $146 {[%emt 0:02:50]} ({Predecessor:} 13. Ne2 O-O 14. c4 Nf6 15. Qc2 Rb8 16. Bf4 Bd6 17. Bxd6 Qxd6 18. Rad1 Qc5 19. Nd4 {1-0 (37) Smirin,I (2671)-Gormally,D (2476) London 1999}) 13... O-O {[%emt 0:03:39]} 14. Ne2 {[%emt 0:02:33]} Bb7 {[%emt 0:03:33]} 15. c4 {[%emt 0:00:04]} Nf6 {[%emt 0:00:05]} 16. Be3 {[%emt 0:00:39]} (16. Bf4 $5 {[%cal Rf4c7]} e5 17. Bg3 $14) 16... Rab8 {[%emt 0:00:18]} 17. Qg3 {[%emt 0:00:01]} Bd6 {[%emt 0:00:13]} 18. Bf4 {[%emt 0:00:01]} e5 {[%emt 0:00:16]} 19. Be3 {[%emt 0:00:15]} a5 {[%emt 0:01:32]} 20. Rfd1 {[%emt 0:00:19][%cal Bf1d1,Bd1d7,Bd7e7][%mdl 32]} a4 {[%emt 0:00:03]} 21. Nc3 {[%emt 0:00:18]} Ra8 {[%emt 0:00:26]} 22. c5 {[%emt 0:00:14]} Be7 {[%emt 0:00:02]} 23. g5 {[%emt 0:00:01] White is more active.} Nh5 {[%emt 0:00:09][%mdl 8192]} (23... Nd7 $16) 24. Qg4 $1 $18 {[%emt 0:00:03][%csl LRa4,LRh5] Threatens to win with Rd7.} Nf4 {[%emt 0:00:20]} 25. Rd7 {[%emt 0:00:15]} Qa5 {[%emt 0:00:01]} 26. Rxe7 {[%emt 0:00:01]} Bc8 {[%emt 0:00:07]} 27. Qd1 {[%emt 0:00:07]} Nxg2 {[%emt 0:00:05]} 28. Kxg2 {[%emt 0:00:00]} a3 {[%emt 0:00:02]} 29. b4 {[%emt 0:00:22]} Qxb4 {[%emt 0:00:02]} 30. Ne2 {[%emt 0:00:00]} (30. Rc1 $18) 30... Be6 $16 {[%emt 0:00:17] [#]} 31. Rxe6 $1 {[%emt 0:00:19]} fxe6 {[%emt 0:00:06] [#]} 32. Qd6 {[%emt 0:00:02]} ({White should play} 32. Qc2 $1 $16) 32... Qe4+ {[%emt 0:00:05]} (32... Qc4 $5 {[%cal Rc4e2]} 33. Kf1 Qd5 $11) 33. Kg1 {[%emt 0:00:02] Hoping for Rd1. Really sharp!} Kh8 {[%emt 0:00:05]} (33... Qc4 $1 $11 {and Black is okay.} 34. Ng3 Qd5) 34. Qxe6 {[%emt 0:00:05]} Rab8 {[%emt 0:00:01]} (34... Qc2 $16 {might work better.}) 35. Ng3 $18 {[%emt 0:00:09]} Qc2 {[%emt 0:00:03]} (35... Qd5 $142 36. Qd6 (36. Qxd5 cxd5 37. c6 Rfc8 $16) 36... Rbc8) 36. Qxe5 {[%emt 0:00:04]} Rb1+ $2 {[%emt 0:00:03]} (36... Rfe8 {keeps fighting.} 37. Qc7 Rbd8) 37. Rxb1 {[%emt 0:00:02]} Qxb1+ {[%emt 0:00:01]} 38. Kh2 {[%emt 0:00:01] Bd4 is the strong threat.} Qxa2 {[%emt 0:00:04]} 39. Nh5 $2 {[%emt 0:00:03]} (39. Bd4 $18 {[%csl Gd4][%cal Re5g7]} Qf7 {[#]} 40. Nf5 $1 {[%mdl 512]}) 39... Qf7 $11 {[%emt 0:00:07]} 40. Bd4 $1 {[%emt 0:00:02][%cal Rh5g7]} Re8 {[%emt 0:00:02]} 41. Qxg7+ {[%emt 0:00:10]} Qxg7 {[%emt 0:00:01]} 42. Nxg7 {[%emt 0:00:04]} Re4 {[%emt 0:00:04]} 43. Ba1 {[%emt 0:00:05] Threatening mate with Nh5+.} Re1 {[%emt 0:00:03]} 44. Bf6 {[%emt 0:00:00]} Kg8 {[%emt 0:00:09]} 45. Nf5 {[%emt 0:00:03]} a2 {[%emt 0:00:03]} 46. Kg3 {[%emt 0:00:09]} Kf7 {[%emt 0:00:11]} 47. h4 {[%emt 0:00:05]} Rc1 {[%emt 0:00:11]} 48. Nd6+ {[%emt 0:00:08]} Ke6 {[%emt 0:00:03]} 49. Ne4 {[%emt 0:00:01]} a1=Q {[%emt 0:00:12]} 50. Bxa1 {[%emt 0:00:01]} Rxa1 {[%emt 0:00:01]} 51. f3 {[%emt 0:00:00]} Rc1 {[%emt 0:00:05]} 52. h5 $2 {[%emt 0:00:01]} (52. Kg4 $11) 52... Kf5 $17 {[%emt 0:00:01] White must now prevent ...Rg1+.} 53. g6 {[%emt 0:00:02]} (53. Kf2 $17 {was necessary.}) 53... hxg6 $19 {[%emt 0:00:03]} 54. hxg6 {[%emt 0:00:01]} Rg1+ {[%emt 0:00:05] Black used his chance.  Weighted Error Value: White=0.31/Black=0.44} ({And not} 54... Kxg6 55. Kf4) 1/2-1/2

[Event "European Corporate Championship 2022"]
[Site "Rotterdam"]
[Date "2022.06.19"]
[Round "5.2"]
[White "Lambrechts, Koen"]
[Black "De Vreugt, Dennis"]
[Result "1-0"]
[ECO "C45"]
[WhiteElo "2349"]
[BlackElo "2393"]
[Annotator "TA"]
[PlyCount "64"]
[EventDate "2022.06.18"]
[EventType "team-tourn"]
[EventCountry "NED"]
[SourceTitle "playchess.com"]
[Source "ChessBase"]
[SourceQuality "1"]
[TimeControl "900+5"]

{[%evp 18,64,-1,-16,-8,-14,-22,-8,0,-10,10,14,24,15,52,40,33,23,29,18,29,28,50,33,85,52,58,29,39,0,5,0,72,50,71,55,114,105,114,121,127,128,131,125,161,117,111,98,120]} 1. e4 {[%emt 0:00:02]} e5 {[%emt 0:00:01]} 2. Nf3 {[%emt 0:00:02]} Nc6 {[%emt 0:00:01]} 3. d4 {[%emt 0:00:02]} exd4 {[%emt 0:00:16]} 4. Nxd4 {[%emt 0:00:01]} Nf6 {[%emt 0:00:23]} 5. Nxc6 {[%emt 0:00:08]} bxc6 {[%emt 0:00:02]} 6. e5 {[%emt 0:00:03]} Qe7 {[%emt 0:00:02]} 7. Qe2 {[%emt 0:00:01]} Nd5 {[%emt 0:00:02]} 8. c4 {[%emt 0:00:02]} Nb6 {[%emt 0:00:10]} 9. Nd2 {[%emt 0:00:30][%cal Bb1d2,Bd2e4,Be4c3][%mdl 32]} a5 {[%emt 0:00:06]} 10. Qe4 {[%emt 0:01:12]} d5 {[%emt 0:02:45] C45: Scotch Game.} 11. exd6 {[%emt 0:02:10]} cxd6 {[%emt 0:00:11]} 12. Be2 {[%emt 0:00:26]} Qxe4 {[%emt 0:02:12] The position is equal.} 13. Nxe4 {[%emt 0:00:02] [#]} d5 $146 {[%emt 0:00:08]} ({Predecessor:} 13... Be6 14. c5 dxc5 15. Be3 Nd5 16. Bxc5 Nf4 17. Bxf8 Kxf8 18. g3 Nxe2 19. Kxe2 Re8 {½-½ (49) Radjabov,T (2744)-Topalov,V (2777) Bilbao 2008}) 14. cxd5 {[%emt 0:01:42]} cxd5 {[%emt 0:00:05]} 15. Nc3 {[%emt 0:01:18]} Bc5 {[%emt 0:02:01]} 16. O-O {[%emt 0:01:46]} O-O {[%emt 0:00:24]} 17. Bf3 {[%emt 0:00:04]} Be6 {[%emt 0:00:17]} 18. Rd1 {[%emt 0:00:13]} Rad8 {[%emt 0:01:11]} 19. Bf4 {[%emt 0:00:02]} Rd7 {[%emt 0:04:24]} 20. Rac1 {[%emt 0:00:15]} Be7 {[%emt 0:00:18]} ({Better is} 20... Rc8 $14) 21. Be3 {[%emt 0:02:36]} Nc4 {[%emt 0:00:47]} 22. Nxd5 {[%emt 0:00:06]} (22. Bxd5 {seems wilder.} Nxe3 23. fxe3 Bg4 24. Bf3) 22... Nxe3 {[%emt 0:00:09]} 23. Nxe3 {[%emt 0:00:20]} (23. fxe3 $5 {[%cal Rd5e7]} Bg5 24. Kf2 $14) 23... Rxd1+ {[%emt 0:00:17]} 24. Rxd1 {[%emt 0:00:04]} Rc8 {[%emt 0:00:24]} (24... Bxa2 $11 25. Ra1 Be6) 25. b3 {[%emt 0:00:33]} Kf8 {[%emt 0:00:22]} 26. Kf1 {[%emt 0:00:32]} Ba3 {[%emt 0:00:06]} ({Black should play} 26... Bc5 $14) 27. Bd5 $16 {[%emt 0:00:17]} Bxd5 {[%emt 0:00:08]} 28. Rxd5 {[%emt 0:00:06]} Rc1+ {[%emt 0:00:05]} 29. Ke2 {[%emt 0:00:03]} Bb4 {[%emt 0:00:01]} 30. a3 {[%emt 0:00:57]} Re1+ {[%emt 0:00:07]} 31. Kf3 {[%emt 0:00:04]} Bxa3 {[%emt 0:00:09]} 32. Rxa5 {[%emt 0:00:30]} Bd6 {[%emt 0:00:11] Weighted Error Value: White=0.11 (very precise) /Black=0.20 (precise)} 1-0

[Event "European Corporate Championship 2022"]
[Site "Rotterdam"]
[Date "2022.06.19"]
[Round "5.3"]
[White "Jonkman, Harmen"]
[Black "Rietman, Frits"]
[Result "0-1"]
[ECO "B01"]
[WhiteElo "2384"]
[BlackElo "2237"]
[Annotator "TA"]
[PlyCount "96"]
[EventDate "2022.06.18"]
[EventType "team-tourn"]
[EventCountry "NED"]
[SourceTitle "playchess.com"]
[Source "ChessBase"]
[SourceQuality "1"]
[TimeControl "900+5"]

{[%evp 9,96,21,54,53,43,26,15,18,32,25,24,7,17,10,7,0,0,0,0,-20,-1,-30,-34,-23,-30,-29,-32,-39,-8,-33,-8,-25,-31,-18,0,0,0,0,0,0,8,8,76,50,93,16,20,0,0,0,0,0,0,0,0,0,104,100,788,764,726,713,621,594,1566,1554,1307,1149,1369,1111,1388,1137,1235,1200,689,554,532,-29986,-29986,-29986,-29987,-29987,-29986,-29987,-29988,-29990,-29989,-29991,-29992]} 1. e4 {[%emt 0:00:06]} d5 {[%emt 0:00:03]} 2. exd5 {[%emt 0:00:04]} Qxd5 {[%emt 0:00:03]} 3. Nc3 {[%emt 0:00:06]} Qd6 {[%emt 0:00:06]} 4. d4 {[%emt 0:00:48]} Nf6 {[%emt 0:00:09]} 5. h3 {[%emt 0:00:51]} c6 {[%emt 0:00:41]} 6. Nf3 {[%emt 0:00:18] B01: Scandinavian Defence.} Bf5 {[%emt 0:00:30]} 7. Bc4 {[%emt 0:00:09]} e6 {[%emt 0:00:38]} 8. Nh4 {[%emt 0:00:47] The position is equal.} Bg6 {[%emt 0:00:45]} (8... Bxc2 {feels hotter.} 9. Qxc2 Qxd4 10. Qb3 b5) 9. Nxg6 {[%emt 0:00:11]} hxg6 {[%emt 0:00:02] [#]} 10. Qd3 $146 {[%emt 0:00:45]} ({Predecessor:} 10. a3 Be7 11. Be3 Nbd7 12. Qf3 Nb6 13. Ba2 Nbd5 14. Nxd5 Nxd5 15. Bxd5 Qxd5 16. Qxd5 {½-½ (16) Schaefer,R (1784)-Romanow,W (2108) Bayerisch Eisenstein 2016}) 10... Nbd7 {[%emt 0:00:58]} 11. Bg5 {[%emt 0:01:11]} Be7 {[%emt 0:00:15]} 12. O-O-O {[%emt 0:00:14]} b5 {[%emt 0:01:49]} 13. Bb3 {[%emt 0:00:11]} a6 {[%emt 0:01:23]} 14. Rhe1 {[%emt 0:00:51]} O-O {[%emt 0:00:23]} (14... c5 {with more complications.} 15. Bxe6 fxe6 16. d5 Ne5) 15. h4 {[%emt 0:01:05]} c5 {[%emt 0:00:33]} 16. dxc5 {[%emt 0:04:25]} Qxd3 {[%emt 0:00:04]} 17. Rxd3 {[%emt 0:00:05]} Nxc5 {[%emt 0:00:04]} 18. Rd4 {[%emt 0:00:03]} Rfd8 {[%emt 0:02:40]} 19. Red1 {[%emt 0:00:02]} Kf8 {[%emt 0:00:12]} 20. f3 {[%emt 0:00:19]} Rxd4 {[%emt 0:00:58]} 21. Rxd4 {[%emt 0:00:01]} Rd8 {[%emt 0:00:05]} 22. Rxd8+ {[%emt 0:00:09]} Bxd8 {[%emt 0:00:02]} 23. Ne2 {[%emt 0:00:07]} Bb6 {[%emt 0:00:19]} 24. Kd2 {[%emt 0:00:31]} a5 {[%emt 0:00:16] Hoping for ...a4.} 25. c3 {[%emt 0:00:04]} a4 {[%emt 0:00:24]} (25... Nxb3+ $11 {remains equal.} 26. axb3 e5) 26. Bc2 $16 {[%emt 0:00:04]} Nd5 {[%emt 0:00:31]} 27. Kc1 {[%emt 0:01:42]} ({White should try} 27. Nd4 $16) 27... e5 $11 {[%emt 0:00:32]} 28. b3 {[%emt 0:00:20]} axb3 {[%emt 0:00:19]} 29. axb3 {[%emt 0:00:01]} Ne6 {[%emt 0:00:14]} 30. Bd2 {[%emt 0:00:26]} Ne3 {[%emt 0:00:11]} 31. Bxe3 {[%emt 0:00:25]} Bxe3+ {[%emt 0:00:02][%mdl 4096] Endgame KBN-KBN} 32. Kb2 {[%emt 0:00:01]} Nf4 {[%emt 0:00:06]} (32... Nc7 $11 {keeps the balance.}) 33. Nxf4 $16 {[%emt 0:00:08]} exf4 {[%emt 0:00:14][%mdl 8192] [#] KB-KB} (33... Bxf4 $16 34. b4 f5) 34. b4 $1 $18 {[%emt 0:00:04]} Bf2 {[%emt 0:00:42]} 35. Bd3 {[%emt 0:00:01]} Bxh4 {[%emt 0:00:01]} 36. Bxb5 {[%emt 0:00:01]} f5 {[%emt 0:00:10]} 37. c4 {[%emt 0:00:05]} Ke7 {[%emt 0:00:05]} 38. Kb3 {[%emt 0:00:15]} g5 {[%emt 0:00:08]} 39. c5 {[%emt 0:00:04]} g4 {[%emt 0:00:03]} 40. Kc4 {[%emt 0:00:03]} gxf3 {[%emt 0:00:15]} 41. gxf3 {[%emt 0:00:03]} g5 {[%emt 0:00:01] [#]} 42. Ba6 $1 {[%emt 0:00:32] Strongly threatening Bc8.} g4 {[%emt 0:00:08]} 43. Bc8 $4 {[%emt 0:00:09][%mdl 8192]} (43. fxg4 $18 fxg4 44. Bc8) 43... g3 {[%emt 0:00:05] Black mates.} 44. b5 {[%emt 0:00:48]} g2 {[%emt 0:00:02]} 45. b6 {[%emt 0:00:04]} Kd8 {[%emt 0:00:07]} 46. Bxf5 {[%emt 0:00:03]} g1=Q {[%emt 0:00:03]} 47. Kb5 {[%emt 0:00:06]} Bf2 {[%emt 0:00:08]} 48. c6 {[%emt 0:00:11]} Bxb6 {[%emt 0:00:02] Black used his chance.  Weighted Error Value: White=0.21 (precise) /Black=0.17 (very precise)} 0-1

[Event "European Corporate Championship 2022"]
[Site "Rotterdam"]
[Date "2022.06.19"]
[Round "5.5"]
[White "Barski, Radoslaw"]
[Black "Warmerdam, Max"]
[Result "1-0"]
[ECO "B90"]
[WhiteElo "2434"]
[BlackElo "2614"]
[Annotator "TA"]
[PlyCount "103"]
[EventDate "2022.06.18"]
[EventType "team-tourn"]
[EventCountry "NED"]
[SourceTitle "playchess.com"]
[Source "ChessBase"]
[SourceQuality "1"]
[TimeControl "900+5"]

{[%evp 14,103,20,12,60,28,47,27,47,27,43,25,27,27,20,3,37,35,37,30,49,28,65,58,72,64,98,102,146,91,79,108,73,97,83,-12,-4,-39,0,0,1,4,106,98,114,0,0,0,50,-487,-473,-1147,-1147,-1136,-1116,-984,-343,-351,-337,-344,-344,-1063,-346,-341,-343,-324,-318,-318,-314,-318,-320,-269,-304,-254,-159,-181,-150,-159,0,0,29989,29990,29990,29991,29991,29992,29992,29993,29993,29994,29994,29989]} 1. e4 {[%emt 0:00:02]} c5 {[%emt 0:00:03]} 2. Nf3 {[%emt 0:00:05]} d6 {[%emt 0:00:02]} 3. d4 {[%emt 0:00:07]} cxd4 {[%emt 0:00:02]} 4. Nxd4 {[%emt 0:00:01]} Nf6 {[%emt 0:00:01]} 5. Nc3 {[%emt 0:00:02]} a6 {[%emt 0:00:01]} 6. Be3 {[%emt 0:00:02]} e5 {[%emt 0:00:04]} 7. Nb3 {[%emt 0:00:02]} Be7 {[%emt 0:00:04]} 8. f3 {[%emt 0:00:05]} h5 {[%emt 0:00:02] B90: Sicilian Najdorf: Unusual White 6th moves, 6 Be3 Ng4 and 6 Be3 e5.} (8... O-O $11 {deserves consideration.}) 9. Qd2 {[%emt 0:00:08]} (9. Na4 $5 {[%cal Ra4b6]}) 9... Nbd7 {[%emt 0:00:02]} 10. a4 {[%emt 0:00:12]} Nf8 {[%emt 0:00:02] [#] White has an edge.} 11. Be2 $146 {[%emt 0:00:22]} ({Predecessor:} 11. h3 Be6 12. Bd3 Ng6 13. a5 O-O 14. O-O Qc7 15. Rfd1 h4 16. Na4 Nh5 17. Nb6 {½-½ (32) Astroukh,V (2192)-Malashenkov,A (2315) LSS email 2013}) 11... Ng6 {[%emt 0:00:22]} 12. O-O {[%emt 0:00:15]} O-O {[%emt 0:00:18]} 13. a5 {[%emt 0:00:20]} Be6 {[%emt 0:00:13]} 14. Rfd1 {[%emt 0:03:04]} Qc7 {[%emt 0:01:04]} 15. Nd5 {[%emt 0:00:23]} (15. Bb6 {with more complications.} Qc6 16. Nc1 Nf4 17. Nd3) 15... Nxd5 {[%emt 0:00:12]} 16. exd5 {[%emt 0:00:02]} Bf5 {[%emt 0:13:53]} 17. c4 {[%emt 0:00:04][%cal Oc4c5]} Nf4 {[%emt 0:00:00]} 18. Bf1 {[%emt 0:01:50]} Bg5 {[%emt 0:00:00]} 19. Rac1 {[%emt 0:00:31]} Qe7 {[%emt 0:00:00]} 20. c5 {[%emt 0:02:18]} Rfd8 {[%emt 0:00:00] [#]} 21. g3 {[%emt 0:01:21]} ({White should try} 21. Nd4 $1 {[%mdl 512]} Bh7 (21... Qf6 22. c6) 22. c6 $1) 21... Nh3+ $16 {[%emt 0:00:00]} 22. Bxh3 {[%emt 0:00:01]} Bxe3+ {[%emt 0:00:00]} 23. Qxe3 {[%emt 0:00:01]} Bxh3 {[%emt 0:00:00]} 24. c6 {[%emt 0:00:30]} (24. Nd2 $16) 24... bxc6 {[%emt 0:00:00]} 25. Rxc6 {[%emt 0:00:08]} Bd7 {[%emt 0:00:00]} (25... Rdb8 $5 {[%cal Rb8b5]}) 26. Rb6 {[%emt 0:00:02]} Bb5 {[%emt 0:00:00]} 27. Nd4 {[%emt 0:00:08]} Rdc8 {[%emt 0:00:00]} (27... Qd7 $1 $11 {remains equal.} 28. Nxb5 axb5) 28. Nf5 {[%emt 0:00:23]} Qd7 {[%emt 0:00:00]} 29. Nxd6 {[%emt 0:00:39]} (29. g4 $1 $16) 29... Rc2 $11 {[%emt 0:00:00]} 30. Qe4 {[%emt 0:01:33] Active counter play!} (30. Nxb5 $2 Qh3 31. Qd2 Rxd2 32. Rxd2 axb5 $19) 30... Re2 {[%emt 0:00:00]} (30... Rxb2 $11 31. Qxe5 Re2) 31. Qh4 $2 {[%emt 0:00:29][%mdl 8192] [#]} (31. Qf5 $1 $14 {was the only good move.}) 31... Qc7 $1 $19 {[%emt 0:00:00]} 32. Qxh5 {[%emt 0:02:11]} (32. Ne4 $142 Qc2 33. Ra1 (33. Nc3 $2 Re3 $19) 33... Qxb2 34. Rf1 Qd4+ 35. Nf2 Qxd5 36. g4) 32... g6 {[%emt 0:00:00] ( -> ...Qc5+)} 33. Qh3 {[%emt 0:00:01]} Qc5+ {[%emt 0:00:12]} 34. Kh1 {[%emt 0:00:01]} Qf2 $2 {[%emt 0:00:01]} (34... Rd2 35. Rg1 Qe3 36. Nxb5 Qxf3+ 37. Qg2 Rxg2 38. Rxg2 Qd1+ 39. Rg1 Qxd5+ 40. Rg2 Qd1+ 41. Rg1 Qf3+ 42. Rg2 axb5) 35. Nxb5 {[%emt 0:00:25][%cal Og3g4]} (35. Rf1 {is a self mate.} Re1) 35... Qxf3+ {[%emt 0:00:02]} 36. Kg1 {[%emt 0:00:01]} axb5 {[%emt 0:00:41]} 37. b4 $2 {[%emt 0:00:13]} (37. Rf1 Qe3+ 38. Kh1) 37... Rb2 $2 {[%emt 0:00:29]} (37... Qe3+ 38. Kh1 Qf3+ 39. Kg1 Kg7) 38. Rf1 {[%emt 0:00:06]} Qe3+ {[%emt 0:00:01]} (38... Qxd5 39. Rbf6 Rf8 40. a6 $17) 39. Kh1 {[%emt 0:00:01][%cal Ob6g6]} Qe4+ {[%emt 0:00:01]} 40. Kg1 {[%emt 0:00:00]} Qd4+ {[%emt 0:00:01]} (40... Qxd5 41. Rbf6 $17) 41. Kh1 {[%emt 0:00:01]} Qxd5+ {[%emt 0:00:01]} 42. Kg1 {[%emt 0:00:01]} Qd4+ {[%emt 0:00:13]} (42... Rxb4 43. Rbf6 $17) 43. Kh1 {[%emt 0:00:01]} Qe4+ {[%emt 0:00:01]} ({Weaker is} 43... Rxb4 44. Qg2 Rf8 45. Qf3 $15) 44. Kg1 {[%emt 0:00:01]} Rd8 {[%emt 0:00:08] aiming for ...Rc2.} ({Worse is} 44... Rxb4 45. Rxf7 Qd4+ 46. Rf2 Rb1+ 47. Kg2 Qe4+ 48. Rf3 $11) 45. Rbf6 {[%emt 0:00:05]} Qe3+ $2 {[%emt 0:00:19]} (45... Qd4+ $17 46. Kh1 Qe4+ 47. Kg1 Rf8) 46. Kh1 $11 {[%emt 0:00:01]} Rf8 $2 {[%emt 0:00:02][%mdl 8192] [#]} (46... Qe4+ $11 47. Kg1 Rf8) 47. Rxg6+ $3 {[%emt 0:00:10][%mdl 512] White mates.} fxg6 {[%emt 0:00:02]} 48. Qe6+ {[%emt 0:00:00]} Kh7 {[%emt 0:00:08]} 49. Qe7+ {[%emt 0:00:01]} Kh6 {[%emt 0:00:01]} 50. Qxf8+ {[%emt 0:00:04]} Kh5 {[%emt 0:00:10]} 51. Qh8+ {[%emt 0:00:04]} Qh6 {[%emt 0:00:04]} 52. Qxe5+ {[%emt 0:00:01] Weighted Error Value: White=0.49/Black=0.55} 1-0

[Event "European Corporate Championship 2022"]
[Site "Rotterdam"]
[Date "2022.06.19"]
[Round "5.6"]
[White "Oudshoorn, Arres"]
[Black "Celinski, Kamil"]
[Result "1-0"]
[ECO "C88"]
[WhiteElo "2137"]
[BlackElo "1907"]
[Annotator "NA RC"]
[PlyCount "113"]
[EventDate "2022.06.18"]
[EventType "team-tourn"]
[EventCountry "NED"]
[SourceTitle "playchess.com"]
[Source "ChessBase"]
[SourceQuality "1"]
[TimeControl "900+5"]

1. e4 {[%emt 0:00:02]} e5 {[%emt 0:00:01]} 2. Nf3 {[%emt 0:00:00]} Nc6 {[%emt 0:00:02]} 3. Bb5 {[%emt 0:00:01]} a6 {[%emt 0:00:01]} 4. Ba4 {[%emt 0:00:01]} Nf6 {[%emt 0:00:01]} 5. O-O {[%emt 0:00:02]} Be7 {[%emt 0:00:01]} 6. Re1 {[%emt 0:00:01]} b5 {[%emt 0:00:01]} 7. Bb3 {[%emt 0:00:01]} O-O {[%emt 0:00:03]} 8. a4 {[%emt 0:00:01]} Bb7 {[%emt 0:00:01]} 9. Nc3 {[%emt 0:00:06]} b4 {[%emt 0:01:21]} 10. Nd5 {[%emt 0:00:02]} Bc5 {[%emt 0:00:21]} 11. d3 {[%emt 0:00:21]} h6 {[%emt 0:00:33]} 12. c3 {[%emt 0:00:43]} a5 {[%emt 0:00:38]} 13. Ne3 {[%emt 0:02:03]} Re8 {[%emt 0:01:02]} 14. Nf5 {[%emt 0:01:35]} Bb6 {[%emt 0:02:55]} 15. Qc2 {[%emt 0:01:06]} d6 {[%emt 0:02:17]} 16. h3 {[%emt 0:00:12]} Ne7 {[%emt 0:00:41]} 17. N3h4 {[%emt 0:00:46]} Nxf5 {[%emt 0:00:32]} 18. Nxf5 {[%emt 0:00:02]} d5 {[%emt 0:00:30]} 19. c4 {[%emt 0:03:24]} dxe4 {[%emt 0:01:34]} 20. dxe4 {[%emt 0:00:01]} Bc5 {[%emt 0:00:11]} 21. Kh2 {[%emt 0:01:10]} Qd7 {[%emt 0:01:39]} 22. g4 {[%emt 0:01:07]} Rad8 {[%emt 0:00:24]} 23. f3 {[%emt 0:00:56]} Qd3 {[%emt 0:00:33]} 24. Kg2 {[%emt 0:00:16]} Bc8 {[%emt 0:00:42]} 25. Ne3 {[%emt 0:00:14]} Bb7 {[%emt 0:00:22]} 26. Rd1 {[%emt 0:00:22]} Qxc2+ {[%emt 0:00:03]} 27. Bxc2 {[%emt 0:00:01]} Bc6 {[%emt 0:00:19]} 28. Nd5 {[%emt 0:00:13]} Bxd5 {[%emt 0:00:01]} 29. cxd5 {[%emt 0:00:01]} Bd4 {[%emt 0:00:18]} 30. Bd3 {[%emt 0:00:25]} Nd7 {[%emt 0:00:13]} 31. Bb5 {[%emt 0:00:01]} Re7 {[%emt 0:00:01]} 32. Rb1 {[%emt 0:01:04]} Nc5 {[%emt 0:00:03]} 33. b3 {[%emt 0:00:01]} f6 {[%emt 0:00:12]} 34. Kf1 {[%emt 0:00:02]} Kh7 {[%emt 0:00:07]} 35. Ke2 {[%emt 0:00:03]} Nb7 {[%emt 0:00:08]} 36. Be3 {[%emt 0:00:09]} Bxe3 {[%emt 0:00:00]} 37. Kxe3 {[%emt 0:00:01]} Nd6 {[%emt 0:00:01]} 38. Rdc1 {[%emt 0:00:06]} Kg6 {[%emt 0:00:09]} 39. Rc5 {[%emt 0:01:38]} Nb7 {[%emt 0:00:07]} 40. Rc2 {[%emt 0:00:00]} Rc8 {[%emt 0:00:08]} 41. Ba6 {[%emt 0:00:00]} Rb8 {[%emt 0:00:03]} 42. Rbc1 {[%emt 0:00:00]} Nd6 {[%emt 0:00:06]} 43. Rxc7 {[%emt 0:00:00]} Rxc7 {[%emt 0:00:05]} 44. Rxc7 {[%emt 0:00:00]} Ne8 {[%emt 0:00:02]} 45. Rc5 {[%emt 0:00:00]} Kg5 {[%emt 0:00:08]} 46. Bf1 {[%emt 0:00:00]} Ra8 {[%emt 0:00:03]} 47. Kf2 {[%emt 0:00:00]} Kf4 {[%emt 0:00:08]} 48. Bb5 {[%emt 0:00:00]} Kg5 {[%emt 0:00:05]} 49. Kg3 {[%emt 0:00:00]} h5 {[%emt 0:00:03]} 50. gxh5 {[%emt 0:00:01]} Kxh5 {[%emt 0:00:01]} 51. Bxe8+ {[%emt 0:00:02]} Rxe8 {[%emt 0:00:01]} 52. Rxa5 {[%emt 0:00:01]} Rc8 {[%emt 0:00:01]} 53. d6 {[%emt 0:00:02]} Kg6 {[%emt 0:00:05]} 54. d7 {[%emt 0:00:02]} Rd8 {[%emt 0:00:01]} 55. Rd5 {[%emt 0:00:01]} Kf7 {[%emt 0:00:02]} 56. a5 {[%emt 0:00:04]} Ke7 {[%emt 0:00:01]} 57. a6 {[%emt 0:00:01]} 1-0